bitfinex/quotes_ETHUSD_20250511
["timestamp","ask_amount","ask_price","bid_price","bid_amount"]
[1746939382182,4.15592381,2541.0,2540.8,0.7593]
[1746939382336,0.22036015,2541.0,2540.9,1.63523]
[1746939382661,2.9888,2542.2,2541.0,0.7593]
[1746939383277,0.4258,2542.0,2541.0,0.7593]
[1746939383484,0.22009238,2541.9,2541.0,0.7593]
[1746939383631,2.78309238,2541.9,2541.0,0.7593]
[1746939383830,0.22009238,2541.9,2541.0,0.7593]
[1746939384042,2.78309238,2541.9,2541.0,0.7593]
[1746939384354,0.22009238,2541.8,2541.0,0.7593]
[1746939384978,5.34609238,2541.8,2541.0,0.7593]
[1746939385269,0.22009238,2541.7,2541.0,0.7593]
[1746939386048,0.22009238,2541.6,2541.0,0.7593]
[1746939386259,0.4258,2541.5,2540.3,0.7593]
[1746939386439,0.4258,2541.5,2540.5,0.75]
[1746939386834,0.22009238,2541.4,2540.5,0.75]
[1746939387069,4.15495611,2541.4,2540.5,0.75]
[1746939387371,3.9349939,2541.3,2540.5,0.75]
[1746939387675,3.93523391,2541.2,2540.5,0.75]
[1746939387849,3.9353083,2541.1,2540.5,0.75]
[1746939388476,3.93518719,2541.2,2540.5,0.75]
[1746939388675,3.93532952,2541.1,2540.5,0.75]
[1746939388968,3.93520155,2541.2,2540.5,0.75]
[1746939389470,3.93543429,2541.1,2540.5,0.75]
[1746939390451,3.93546581,2541.0,2540.5,0.75]
[1746939390853,3.93565758,2540.9,2540.5,0.75]
[1746939391051,3.93593703,2540.7,2540.5,0.75]
[1746939391377,8.0,2540.9,2540.1,0.8272]
[1746939391577,3.93592317,2540.7,2539.9,0.8272]
[1746939391763,0.4258,2540.8,2539.5,0.8272]
[1746939391764,3.93669091,2540.3,2539.5,0.8272]
[1746939392081,3.93669091,2540.3,2539.7,0.8272]
[1746939392255,2.562,2540.5,2539.7,0.8272]
[1746939392451,3.93701522,2540.0,2539.7,0.8272]
[1746939392646,3.9368893,2540.1,2539.7,0.8272]
[1746939394369,3.93726263,2539.9,2539.7,0.8272]
[1746939394683,3.93705433,2540.0,2539.7,0.8272]
[1746939396755,8.0,2540.3,2539.7,0.8272]
[1746939396955,8.0,2540.3,2536.1,3.935]
[1746939396956,3.93817125,2539.3,2539.0,0.8272]
[1746939397156,3.93791354,2539.5,2539.0,0.8272]
[1746939397487,2.562,2539.6,2539.0,0.8272]
[1746939397883,3.93778302,2539.5,2539.0,0.8272]
[1746939398251,3.93806142,2539.4,2539.0,0.8272]
[1746939398453,3.9378044,2539.5,2539.0,0.8272]
[1746939399678,3.93793809,2539.4,2539.0,0.8272]
[1746939402276,5.124,2539.6,2539.0,0.8272]
[1746939402465,3.93778302,2539.5,2539.0,0.8272]
[1746939403189,3.93793809,2539.4,2539.0,0.8272]
[1746939403395,3.93782925,2539.5,2539.0,0.8272]
[1746939404213,9.06168704,2539.6,2539.0,0.8272]
[1746939404387,2.562,2539.6,2539.0,0.8272]
[1746939404558,6.49964935,2539.6,2539.0,0.8272]
[1746939405461,2.562,2539.6,2539.0,0.8272]
[1746939407282,13.125,2540.0,2539.0,0.8272]
[1746939407481,3.9374308,2539.8,2539.0,0.8272]
[1746939408081,2.563,2540.0,2539.0,0.8272]
[1746939408355,6.50011366,2540.0,2539.2,0.7698]
[1746939408799,2.563,2540.0,2539.3,0.03937791]
[1746939409085,2.563,2540.0,2539.4,0.7698]
[1746939409288,6.50009442,2540.0,2539.4,0.7698]
[1746939412992,3.93772333,2539.6,2539.4,0.7698]
[1746939413192,3.93749709,2539.7,2539.4,0.7698]
[1746939414904,3.93765563,2539.6,2539.4,0.7698]
[1746939415607,3.93736856,2539.8,2539.4,0.7698]
[1746939415786,6.50004358,2540.0,2539.4,0.7698]
[1746939416375,3.93721894,2539.9,2539.4,0.7698]
[1746939417415,3.9374651,2539.8,2539.4,0.7698]
[1746939417917,2.563,2540.0,2539.4,0.7698]
[1746939418214,0.22008335,2539.9,2539.4,0.7698]
[1746939418517,4.1572737,2539.9,2539.4,0.7698]
[1746939419021,3.93719035,2539.9,2539.4,0.7698]
[1746939419216,2.563,2540.0,2539.4,0.7698]
[1746939419883,6.50010299,2540.0,2539.4,0.7698]
[1746939420305,0.22035779,2539.9,2539.4,0.7698]
[1746939420508,4.15753831,2539.9,2539.4,0.7698]
[1746939420722,0.22035779,2539.9,2539.4,0.7698]
[1746939421519,0.22035779,2539.8,2539.4,0.7698]
[1746939424287,0.22035779,2539.9,2539.4,0.7698]
[1746939424482,3.93731789,2539.8,2539.4,0.7698]
[1746939424700,3.93772299,2539.6,2539.4,0.7698]
[1746939424921,0.22035779,2539.9,2539.4,0.7698]
[1746939425163,0.22035779,2539.8,2539.4,0.7698]
[1746939426101,4.1577264,2539.8,2539.4,0.7698]
[1746939426991,0.22035779,2539.7,2539.4,0.7698]
[1746939427927,0.22035779,2539.9,2539.4,0.7698]
[1746939428502,0.22035779,2539.8,2539.4,0.7698]
[1746939429225,0.22035779,2539.7,2539.4,0.7698]
[1746939430106,4.15770164,2539.8,2539.4,0.7698]
[1746939431034,0.22035779,2539.7,2539.4,0.7698]
[1746939431790,0.22035779,2539.6,2539.5,0.03937698]
[1746939432230,2.562,2540.4,2539.5,0.8189]
[1746939432436,2.562,2540.4,2539.7,0.8189]
[1746939432622,2.562,2540.4,2539.9,0.8189]
[1746939432803,2.56,2540.7,2540.1,0.8189]
[1746939434327,6.78480138,2540.7,2540.1,0.8189]
[1746939434536,0.4258,2540.6,2539.9,0.8189]
[1746939434754,3.93623302,2540.5,2539.9,0.8189]
[1746939435038,3.93638797,2540.4,2539.9,0.8189]
[1746939435420,3.93659403,2540.3,2539.9,0.8189]
[1746939435613,3.93681482,2540.2,2539.9,0.8189]
[1746939436699,0.4258,2540.6,2539.9,0.8189]
[1746939436902,0.4258,2540.6,2539.5,0.7876]
[1746939436903,0.4258,2540.3,2539.5,0.7876]
[1746939437112,3.93685287,2540.1,2539.5,0.7876]
[1746939437440,3.93713844,2540.0,2539.5,0.7876]
[1746939438899,3.93689846,2540.1,2539.5,0.7876]
[1746939439119,2.561,2540.2,2539.5,0.7876]
[1746939439320,2.561,2540.2,2539.7,0.7876]
[1746939439748,6.49771742,2540.2,2539.7,0.7876]
[1746939439933,2.561,2540.2,2539.7,0.7876]
[1746939440147,2.561,2540.5,2539.8,0.03937174]
[1746939440456,2.561,2540.5,2539.9,0.7876]
[1746939443139,2.561,2540.5,2540.1,0.8129]
[1746939444754,3.93598333,2540.7,2540.1,0.8129]
[1746939444950,0.22048978,2540.6,2540.1,0.8129]
[1746939445842,0.22048978,2540.5,2540.1,0.8129]
[1746939446473,3.93598333,2540.7,2540.1,0.8129]
[1746939446857,0.2204584,2540.6,2540.1,0.8129]
[1746939447637,0.2204584,2540.5,2540.1,0.8129]
[1746939448542,3.93592859,2540.7,2540.1,0.8129]
[1746939448746,3.93581337,2540.8,2540.1,0.8129]
[1746939449269,0.22041943,2540.7,2540.1,0.8129]
[1746939449767,3.9359252,2540.7,2540.1,0.8129]
[1746939450461,0.22038887,2540.6,2540.1,0.8129]
[1746939451163,3.9359252,2540.7,2540.1,0.8129]
[1746939451756,3.93581824,2540.8,2540.1,0.8129]
[1746939451931,0.22037972,2540.7,2540.1,0.8129]
[1746939452880,3.93640138,2540.4,2540.1,0.8129]
[1746939453064,3.93620614,2540.6,2540.1,0.8129]
[1746939453264,3.93628519,2540.5,2540.1,0.8129]
[1746939453457,3.93651322,2540.4,2540.1,0.8129]
[1746939454058,3.93626925,2540.5,2540.1,0.8129]
[1746939454253,3.9361175,2540.6,2540.1,0.8129]
[1746939455275,3.93605957,2540.7,2540.1,0.8129]
[1746939455470,3.93582629,2540.8,2540.1,0.8129]
[1746939455644,0.220407,2540.7,2540.1,0.8129]
[1746939455843,4.15633934,2540.7,2540.1,0.8129]
[1746939456480,0.220407,2540.6,2540.1,0.8129]
[1746939457075,4.15655088,2540.6,2540.1,0.8129]
[1746939457274,3.93597109,2540.7,2540.1,0.8129]
[1746939458877,0.22054526,2540.6,2540.1,0.8129]
[1746939459089,4.15663871,2540.6,2540.1,0.8129]
[1746939459252,0.22054526,2540.6,2540.1,0.8129]
[1746939459451,2.85739665,2541.0,2540.1,0.8129]
[1746939459673,2.559,2541.0,2540.1,0.8129]
[1746939460268,4.15632249,2540.9,2540.1,0.8129]
[1746939461181,0.22058653,2540.8,2540.1,0.8129]
[1746939461677,0.22058653,2540.7,2540.1,0.8129]
[1746939462260,0.22058653,2540.8,2540.1,0.8129]
[1746939462660,4.15636676,2540.8,2540.1,0.8129]
[1746939463087,0.22058653,2540.7,2540.1,0.8129]
[1746939468563,3.93514874,2541.2,2540.6,0.7821]
[1746939468763,3.93547236,2541.0,2540.6,0.7821]
[1746939469595,0.22058653,2540.9,2540.6,0.7821]
[1746939470316,3.93585159,2540.8,2540.6,0.7821]
[1746939470467,4.15631305,2540.9,2540.1,8.0]
[1746939470666,0.22058653,2540.7,2540.2,2.0936]
[1746939472065,0.22058653,2540.7,2540.3,0.7974]
[1746939472364,0.22058653,2540.7,2540.5,0.7974]
[1746939472589,0.22058653,2541.1,2540.5,0.7974]
[1746939473363,0.22058653,2541.0,2540.3,0.7974]
[1746939473575,0.22058653,2541.0,2540.5,0.7974]
[1746939473781,0.22058653,2541.0,2540.7,0.7974]
[1746939474080,0.22058653,2541.0,2540.4,0.21089]
[1746939474081,0.22058653,2541.4,2540.5,0.7974]
[1746939474399,0.22058653,2541.4,2540.7,0.7974]
[1746939474699,0.22058653,2541.3,2540.7,0.7974]
[1746939474869,0.22058653,2541.3,2540.8,0.83675399]
[1746939475470,0.22058653,2541.7,2540.8,0.83675399]
[1746939475911,0.22058653,2541.7,2540.8,0.7974]
[1746939476101,0.22058653,2541.7,2540.9,0.87974]
[1746939476291,0.22058653,2541.7,2541.0,0.83674534]
[1746939476489,0.22058653,2541.9,2541.0,0.83674534]
[1746939477211,0.22058653,2541.8,2541.0,0.7974]
[1746939477908,0.22058653,2541.8,2541.0,0.83674538]
[1746939478096,21.07942089,2542.2,2541.0,0.7974]
[1746939478097,0.22058653,2541.7,2541.0,0.7974]
[1746939478907,3.9340737,2541.9,2541.0,0.7974]
[1746939479470,4.15454392,2541.8,2541.0,0.7974]
[1746939480376,0.22021412,2541.7,2541.0,0.7974]
[1746939481289,3.93456745,2541.6,2541.0,0.7974]
[1746939482707,3.93470091,2541.5,2541.0,0.7974]
[1746939483008,3.93489149,2541.4,2541.0,0.7974]
[1746939483509,3.93505937,2541.3,2540.5,2.555]
[1746939483696,0.4258,2541.4,2540.6,1.297789]
[1746939483697,4.36064685,2541.4,2540.6,1.297789]
[1746939484017,0.4258,2541.4,2540.6,0.7656]
[1746939484378,3.9349519,2541.4,2540.6,0.7656]
[1746939484674,0.22018905,2541.3,2540.6,0.7656]
[1746939485204,3.9349519,2541.4,2540.6,0.7656]
[1746939486273,3.93469121,2541.5,2540.6,0.7656]
[1746939486500,3.93499434,2541.3,2540.6,0.7656]
[1746939486813,3.93543185,2541.1,2540.6,0.7656]
[1746939488311,3.93502843,2541.3,2540.6,0.7656]
[1746939488611,3.93493951,2541.4,2540.6,0.7656]
[1746939488916,0.22031355,2541.3,2540.6,0.7656]
[1746939489738,0.22031355,2541.2,2540.6,0.7656]
[1746939490227,4.15546617,2541.2,2540.6,0.7656]
[1746939490442,3.93534866,2541.1,2540.6,0.7656]
[1746939491528,3.93520708,2541.2,2540.6,0.7656]
[1746939491681,2.556,2541.6,2540.7,0.03935817]
[1746939492027,2.556,2541.6,2540.8,0.77]
[1746939492241,0.22042328,2541.5,2540.8,0.77]
[1746939492533,3.93494437,2541.4,2540.8,0.77]
[1746939492881,0.22042328,2541.3,2540.8,0.77]
[1746939493204,3.93524565,2541.2,2540.8,0.77]
[1746939493399,3.93534691,2541.1,2540.8,0.77]
[1746939493592,3.93534691,2541.1,2540.5,0.77]
[1746939494510,0.22054271,2541.0,2540.5,0.77]
[1746939495179,4.36098286,2541.2,2540.5,0.77]
[1746939495584,3.93518286,2541.2,2540.5,0.77]
[1746939496117,0.22059045,2541.1,2540.5,0.77]
[1746939496618,0.22059045,2541.0,2540.5,0.77]
[1746939497227,4.15609708,2541.0,2540.5,0.77]
[1746939497688,0.22059045,2541.0,2540.5,0.77]
[1746939498562,0.22059045,2541.0,2540.5,0.80935731]
[1746939498929,0.22059045,2541.2,2540.5,0.80935731]
[1746939502560,0.22059045,2541.2,2540.5,0.77]
[1746939502725,4.15577895,2541.2,2540.5,1.668089]
[1746939502925,0.22059045,2541.2,2540.5,1.668089]
[1746939503126,0.22059045,2541.1,2540.5,1.668089]
[1746939503356,0.22059045,2541.1,2540.6,0.03935727]
[1746939503525,0.22059045,2541.1,2540.7,0.8286]
[1746939503922,0.22059045,2541.2,2540.9,0.8286]
[1746939505124,0.22059045,2541.2,2541.1,0.8286]
[1746939505861,0.22059045,2541.7,2541.1,0.8286]
[1746939506237,0.22059045,2541.6,2541.1,0.8286]
[1746939506533,3.93473913,2541.5,2541.1,0.8286]
[1746939507067,4.1551591,2541.6,2541.1,0.8286]
[1746939507537,0.22059045,2541.5,2541.1,0.8286]
[1746939508723,0.22059045,2541.5,2540.5,0.7583]
[1746939508963,0.22059045,2541.4,2540.7,8.0]
[1746939509131,3.93511923,2541.3,2540.8,1.31463524]
[1746939509734,0.22059045,2541.2,2540.8,1.31463524]
[1746939510260,0.22059045,2541.2,2540.9,0.7583]
[1746939511053,0.22059045,2541.2,2540.9,0.79765417]
[1746939511256,0.22059045,2541.5,2540.9,0.79765417]
[1746939511448,0.22059045,2541.5,2541.0,0.21122894]
[1746939512257,0.22059045,2541.4,2541.0,0.21122894]
[1746939512833,0.22059045,2541.3,2541.0,0.21122894]
[1746939513561,0.22059045,2541.4,2541.0,0.21122894]
[1746939513766,3.93503594,2541.3,2541.0,0.21122894]
[1746939513962,0.22059045,2541.4,2541.0,0.21122894]
[1746939514263,0.22059045,2541.3,2541.0,0.21122894]
[1746939515237,0.22059045,2541.2,2541.0,0.21122894]
[1746939516279,0.22059045,2541.5,2541.0,0.21122894]
[1746939517161,0.22059045,2541.4,2541.0,0.21122894]
[1746939518051,0.22059045,2541.3,2541.0,0.21122894]
[1746939518950,0.22059045,2541.5,2541.0,0.21122894]
[1746939519668,0.22059045,2541.4,2541.0,0.21122894]
[1746939520587,0.22059045,2541.3,2541.0,0.21122894]
[1746939521353,0.22059045,2541.5,2541.0,0.21122894]
[1746939521683,0.22059045,2541.5,2541.1,0.7824]
[1746939521887,0.22059045,2541.5,2541.1,0.82175081]
[1746939522287,0.22059045,2541.7,2541.1,0.82175081]
[1746939522786,0.22059045,2541.6,2541.1,0.82175081]
[1746939522992,0.22059045,2541.6,2541.2,0.82174604]
[1746939523902,0.22059045,2541.7,2541.2,0.82174604]
[1746939524051,0.22059045,2541.7,2541.2,3.37374604]
[1746939524255,0.22059045,2541.7,2541.4,0.7824]
[1746939524672,0.22059045,2542.1,2541.4,0.7824]
[1746939524871,0.22059045,2542.1,2541.6,0.7824]
[1746939525200,0.22059045,2542.0,2541.7,0.03934082]
[1746939525410,0.22059045,2542.0,2541.8,0.7824]
[1746939525994,0.22059045,2542.2,2541.8,0.7824]
[1746939526570,0.22059045,2542.1,2541.8,0.7824]
[1746939527405,3.93361401,2542.2,2541.8,0.7824]
[1746939528189,6.48649754,2542.3,2541.8,0.7824]
[1746939528915,0.22041431,2542.2,2541.8,0.7824]
[1746939529698,0.22041431,2542.1,2541.8,0.7824]
[1746939530607,2.553,2542.3,2541.9,0.03933693]
[1746939531711,2.553,2542.3,2541.8,0.7824]
[1746939532606,2.553,2542.3,2541.9,0.03933533]
[1746939533189,0.28777408,2542.5,2541.9,0.03933533]
[1746939533385,0.22021395,2542.4,2541.8,0.7824]
[1746939533619,0.22021395,2542.4,2542.0,0.7771]
[1746939533819,0.22021395,2542.4,2541.4,0.7771]
[1746939533820,4.15350927,2542.4,2541.4,0.7771]
[1746939534002,3.93354257,2542.3,2541.5,8.0]
[1746939534193,3.93365239,2542.2,2541.6,1.38811]
[1746939534394,3.93391784,2542.0,2541.6,1.38811]
[1746939534635,0.4258,2542.4,2541.6,1.38811]
[1746939534814,3.9338761,2542.1,2541.4,0.7771]
[1746939535903,9.45915058,2542.4,2541.4,0.7771]
[1746939536099,0.22020175,2542.3,2541.6,1.70396415]
[1746939536326,0.22020175,2542.3,2541.9,0.7771]
[1746939536500,0.22020175,2542.3,2542.0,0.87771]
[1746939536703,0.22020175,2542.3,2542.0,0.87030084]
[1746939537214,3.93282762,2542.7,2542.0,0.87030084]
[1746939537406,3.93282762,2542.7,2542.2,0.8295]
[1746939539408,4.65400867,2542.8,2542.2,0.8295]
[1746939539711,0.21999199,2542.7,2542.2,0.8295]
[1746939540220,3.93298679,2542.6,2542.2,0.8295]
[1746939540412,4.15297878,2542.6,2542.2,0.8295]
[1746939541040,3.93298679,2542.6,2542.2,0.8295]
[1746939541553,3.93286992,2542.7,2542.2,0.8295]
[1746939542374,3.93286992,2542.7,2541.8,10.55]
[1746939542375,2.55,2543.8,2542.4,0.8043]
[1746939542652,0.64575982,2543.7,2542.6,0.8043]
[1746939543057,8.64575982,2543.7,2542.6,0.8043]
[1746939543244,3.93159032,2543.5,2542.6,0.8043]
[1746939543972,3.93195005,2543.3,2542.6,0.8043]
[1746939544167,3.93221296,2543.1,2542.6,0.8043]
[1746939544535,4.15206163,2543.2,2542.6,0.8043]
[1746939544738,0.21995982,2543.2,2542.6,0.8043]
[1746939545040,3.93192735,2543.3,2542.6,0.8043]
[1746939546668,3.93179499,2543.4,2542.6,0.8043]
[1746939546835,0.21974725,2543.3,2542.6,0.8043]
[1746939547279,4.15169056,2543.3,2542.6,0.8043]
[1746939547642,0.21974725,2543.2,2542.6,0.8043]
[1746939548142,4.15183931,2543.2,2542.6,0.8043]
[1746939548476,3.93209206,2543.2,2542.6,0.8043]
[1746939549854,3.93194601,2543.3,2542.6,0.8043]
[1746939550056,0.21979697,2543.2,2542.6,0.8043]
[1746939550760,3.93184729,2543.4,2542.6,0.8043]
[1746939550961,0.4258,2543.6,2542.6,0.8043]
[1746939550962,3.93193791,2543.3,2542.6,0.8043]
[1746939551270,3.93210134,2543.2,2542.6,0.8043]
[1746939551607,3.93221951,2543.1,2542.6,0.8043]
[1746939551891,0.64573756,2543.0,2542.6,0.8043]
[1746939552205,3.93264853,2542.9,2542.3,0.7503]
[1746939552495,4.15258609,2542.9,2542.3,0.7503]
[1746939552654,3.93264853,2542.9,2542.3,0.7503]
[1746939554758,0.22010075,2542.8,2542.3,0.7503]
[1746939555088,3.93264853,2542.9,2542.3,0.7503]
[1746939555273,3.9328092,2542.8,2542.3,0.7503]
[1746939556089,3.93263114,2542.9,2542.3,0.7503]
[1746939556275,4.35820025,2543.0,2542.3,0.7503]
[1746939556594,0.22018615,2542.9,2542.3,0.7503]
[1746939556890,4.35820025,2543.0,2542.3,0.7503]
[1746939557476,0.22021605,2542.9,2542.3,0.7503]
[1746939557789,0.22021605,2542.8,2542.3,0.7503]
[1746939558280,3.93226316,2543.1,2542.3,0.7503]
[1746939559101,6.48205412,2543.2,2542.5,0.7503]
[1746939559587,3.93221358,2543.1,2542.5,0.7503]
[1746939559902,6.48211009,2543.2,2542.5,0.7503]
[1746939560063,0.22027745,2543.0,2542.5,0.7503]
[1746939560767,0.22027745,2542.9,2542.5,0.7503]
[1746939560977,3.93267264,2542.8,2542.5,0.7503]
[1746939561603,0.22027745,2542.7,2542.5,0.7503]
[1746939562090,0.22027745,2542.8,2542.5,0.7503]
[1746939562291,4.15299162,2542.8,2542.5,0.7503]
[1746939562686,0.22027745,2542.7,2542.5,0.7503]
[1746939563493,0.22027745,2543.0,2542.5,0.7503]
[1746939563698,0.22027745,2543.0,2542.6,0.7951]
[1746939564072,0.22027745,2543.1,2542.6,0.7951]
[1746939565772,0.22027745,2543.0,2542.6,0.7951]
[1746939566472,0.22027745,2543.1,2542.6,0.7951]
[1746939566794,0.22027745,2543.0,2542.6,0.7951]
[1746939567508,0.22027745,2542.9,2542.6,0.7951]
[1746939568417,0.22027745,2543.0,2542.6,0.7951]
[1746939569476,0.22027745,2542.9,2542.6,0.7951]
[1746939569897,0.22027745,2543.1,2542.6,0.7951]
[1746939570778,0.22027745,2543.0,2542.6,0.7951]
[1746939571595,0.22027745,2542.9,2542.6,0.7951]
[1746939572112,0.22027745,2542.8,2542.6,0.7951]
[1746939572476,0.22027745,2543.0,2542.6,0.7951]
[1746939572996,4.15265359,2543.0,2542.6,0.7951]
[1746939573191,0.22027745,2543.0,2542.6,0.7951]
[1746939573393,0.22027745,2543.0,2541.4,0.7964]
[1746939573394,3.93267264,2542.8,2541.4,0.7964]
[1746939573603,0.4258,2542.8,2541.5,0.7964]
[1746939573824,3.93383339,2542.1,2541.5,0.7964]
[1746939574141,0.22027745,2542.0,2541.5,0.7964]
[1746939574796,0.22027745,2542.2,2541.5,0.7964]
[1746939574996,0.22027745,2542.2,2541.6,0.87964]
[1746939575641,3.93376538,2542.1,2541.5,0.7964]
[1746939575856,4.15388453,2542.2,2541.5,0.7964]
[1746939576003,3.9337577,2542.1,2541.5,0.7964]
[1746939576534,0.22027745,2542.0,2541.5,0.7964]
[1746939578122,0.22027745,2542.1,2541.5,0.7964]
[1746939578326,0.22027745,2542.1,2541.5,1.93074]
[1746939578936,4.15406507,2542.1,2541.5,1.93074]
[1746939579349,3.93365655,2542.2,2541.5,1.93074]
[1746939581277,2.8470401,2542.6,2541.6,0.7602]
[1746939581464,3.93035059,2544.4,2541.6,0.7602]
[1746939581465,3.93233807,2543.1,2542.1,0.8266]
[1746939581625,3.93233807,2543.1,2542.2,0.8266]
[1746939581824,3.93233807,2543.1,2542.2,0.86592962]
[1746939582032,0.22019983,2543.0,2542.2,0.86592962]
[1746939582225,0.22019983,2543.0,2542.2,8.03932962]
[1746939582579,3.93199188,2543.3,2542.4,0.8266]
[1746939582862,3.93199188,2543.3,2542.5,0.03932497]
[1746939583065,3.93199188,2543.3,2542.6,0.8266]
[1746939583566,0.22015929,2543.2,2542.6,0.8266]
[1746939584335,0.22015929,2543.2,2542.8,0.8266]
[1746939584658,4.22481121,2543.5,2542.8,0.8266]
[1746939584963,0.19640655,2544.2,2542.4,0.03932328]
[1746939584964,0.4258,2544.1,2542.9,0.8659225]
[1746939585149,0.72227135,2544.1,2542.9,0.8659225]
[1746939585343,0.72227135,2544.1,2542.9,2.13838866]
[1746939585344,3.93141219,2543.7,2542.9,2.13838866]
[1746939586289,0.72227135,2544.1,2543.0,0.8266]
[1746939586562,3.93115265,2543.8,2543.1,0.03931804]
[1746939587468,3.93115265,2543.8,2543.0,0.8266]
[1746939587642,3.93130592,2543.7,2543.0,0.8266]
[1746939587961,3.93148338,2543.6,2543.1,0.21383887]
[1746939588366,3.93164372,2543.5,2543.0,0.8266]
[1746939588569,3.93164322,2543.5,2543.0,0.8266]
[1746939589342,3.9312812,2543.7,2543.0,0.8266]
[1746939589541,3.93143955,2543.6,2543.0,0.8266]
[1746939589767,3.93143955,2543.6,2543.0,1.71319225]
[1746939590871,3.93133218,2543.7,2543.0,1.71319225]
[1746939591840,3.93144777,2543.6,2543.0,1.71319225]
[1746939593368,3.93112815,2543.8,2543.0,1.71319225]
[1746939593745,3.93112815,2543.8,2543.1,0.7752]
[1746939595178,0.29647135,2544.1,2543.1,0.7752]
[1746939595354,2.9708,2544.2,2543.1,0.7752]
[1746939595772,0.29649394,2544.3,2543.3,0.7752]
[1746939595974,3.9294985,2544.9,2544.0,0.7752]
[1746939596147,3.93001871,2544.6,2544.2,0.7752]
[1746939596342,0.28971525,2544.9,2544.2,0.7752]
[1746939596558,3.93000157,2544.6,2544.2,0.7752]
[1746939596764,3.9297738,2544.7,2544.2,0.7752]
[1746939596968,3.92989243,2544.6,2544.2,0.7752]
[1746939597279,3.92963118,2544.8,2544.2,0.7752]
[1746939597439,3.92974323,2544.7,2544.2,0.7752]
[1746939597644,8.4258,2545.1,2544.2,0.7752]
[1746939597871,3.92991073,2544.6,2544.2,0.7752]
[1746939598077,0.21916389,2545.0,2544.2,0.7752]
[1746939598271,3.93035412,2544.3,2543.6,2.544]
[1746939598443,3.93035412,2544.3,2543.3,8.0]
[1746939598444,3.93059972,2544.2,2543.4,0.789]
[1746939598648,3.93059972,2544.2,2543.5,1.6679]
[1746939599041,3.93040505,2544.3,2543.6,0.789]
[1746939599384,3.93024363,2544.4,2543.6,0.82830917]
[1746939599585,5.088,2544.6,2543.6,0.789]
[1746939599745,3.93044261,2544.3,2543.6,0.789]
[1746939600341,3.93052599,2544.2,2543.6,1.21019]
[1746939600958,3.93066604,2544.1,2543.6,1.21019]
[1746939601179,5.088,2544.6,2543.6,0.789]
[1746939601480,3.93063607,2544.2,2543.6,0.789]
[1746939601671,3.93068699,2544.1,2543.6,0.789]
[1746939601984,3.9305551,2544.2,2543.6,0.789]
[1746939602487,3.93045367,2544.3,2543.6,0.789]
[1746939602682,3.93057681,2544.2,2543.6,1.6679]
[1746939602883,3.93057681,2544.2,2543.6,0.789]
[1746939603289,3.93033267,2544.4,2543.6,0.789]
[1746939603458,5.088,2544.6,2543.6,0.789]
[1746939603667,5.087,2544.6,2543.6,0.789]
[1746939603992,3.93060702,2544.2,2543.6,0.789]
[1746939604284,3.93004975,2544.5,2543.6,0.789]
[1746939604469,5.087,2544.6,2543.6,0.789]
[1746939604662,5.07345365,2544.6,2543.6,0.789]
[1746939605253,3.93055122,2544.2,2543.6,0.789]
[1746939605456,3.93055122,2544.2,2543.6,1.6679]
[1746939606462,3.93039592,2544.3,2543.6,1.6679]
[1746939607277,5.087,2544.6,2543.6,0.789]
[1746939607278,0.4258,2544.2,2543.6,0.789]
[1746939607462,3.93024555,2544.4,2542.6,0.8073]
[1746939607463,3.93172414,2543.5,2542.6,0.8073]
[1746939607667,8.55,2544.3,2542.8,0.8073]
[1746939607668,5.087,2544.0,2542.8,0.8073]
[1746939607868,5.087,2544.0,2543.0,0.8073]
[1746939608084,5.087,2544.0,2543.2,0.8073]
[1746939608403,5.087,2544.0,2543.4,0.8073]
[1746939608893,0.4258,2544.4,2543.4,0.84661532]
[1746939609058,3.93046877,2544.3,2543.4,0.84661532]
[1746939609381,49.422058,2544.0,2543.4,0.84661532]
[1746939610292,49.422058,2544.0,2543.4,0.8073]
[1746939610591,3.93129071,2543.7,2543.4,0.8073]
[1746939610780,3.93129071,2543.7,2542.6,8.0]
[1746939610781,3.9314084,2543.7,2543.2,0.8073]
[1746939611678,49.422058,2544.0,2543.2,0.8073]
[1746939611991,3.93139491,2543.7,2543.2,0.8073]
[1746939612167,3.93207599,2543.2,2542.9,0.8306]
[1746939612486,3.93258911,2542.9,2542.2,0.8306]
[1746939612690,3.93270226,2542.8,2542.2,0.8306]
[1746939612895,3.93256967,2542.9,2542.2,0.8306]
[1746939613490,5.087,2543.2,2542.2,0.8306]
[1746939613491,3.93238912,2543.0,2542.2,0.8306]
[1746939613682,0.22007545,2542.9,2542.2,0.8306]
[1746939613987,0.22007545,2542.9,2542.4,0.8306]
[1746939614371,0.22007545,2542.9,2542.5,0.03932841]
[1746939614693,3.93176413,2543.4,2542.6,0.8306]
[1746939614868,3.93163932,2543.5,2542.6,0.8306]
[1746939615465,0.21994838,2543.4,2542.6,0.8306]
[1746939615698,0.21994838,2543.4,2542.6,8.8306]
[1746939615986,0.21994838,2543.4,2542.7,1.39569284]
[1746939616394,4.15170819,2543.4,2542.7,1.39569284]
[1746939616561,3.93175981,2543.4,2542.7,1.39569284]
[1746939617159,6.47443581,2543.6,2542.7,1.39569284]
[1746939617490,3.93161573,2543.5,2542.8,0.8167]
[1746939617660,3.93161573,2543.5,2542.9,0.22123928]
[1746939619997,3.93161573,2543.5,2542.8,0.8167]
[1746939619998,3.93159032,2543.5,2542.8,0.8167]
[1746939620300,0.4258,2543.4,2542.0,0.8167]
[1746939620474,3.93246231,2543.0,2542.2,0.8167]
[1746939620798,3.9320541,2543.2,2542.3,0.03933199]
[1746939620970,3.9320541,2543.2,2542.4,0.8167]
[1746939621177,3.9320541,2543.2,2542.0,8.0]
[1746939621178,3.9320617,2543.2,2542.6,0.8167]
[1746939622092,3.93233278,2543.1,2542.6,0.8167]
[1746939622300,3.9320617,2543.2,2542.6,0.8167]
[1746939622464,3.93220872,2543.1,2542.6,0.8167]
[1746939623694,2.9688,2543.4,2542.6,0.8167]
[1746939623897,8.55,2543.3,2542.4,0.8167]
[1746939624066,8.55,2543.1,2542.1,0.8167]
[1746939624266,3.93251799,2542.9,2542.1,0.8167]
[1746939624883,2.76365802,2543.0,2542.1,0.8167]